[Event "*** Titled Tuesday Blitz"]
[Site "Chess.com"]
[Date "2021.02.16"]
[Round "1"]
[White "Kaslask"]
[Black "rychessmaster1"]
[Result "0-1"]
[WhiteElo "2248"]
[BlackElo "2558"]
[TimeControl "180+1"]
[EndTime "10:07:22 PST"]
[Termination "rychessmaster1 won by resignation"]

1. d4 {[%clk 0:03:00.9]} 1... Nf6 {[%clk 0:02:59.9]} 2. c4 {[%clk 0:02:59.9]}
2... e6 {[%clk 0:03:00.6]} 3. Nc3 {[%clk 0:02:59.8]} 3... Bb4 {[%clk 0:03:01.3]}
4. Nf3 {[%clk 0:02:59.6]} 4... b6 {[%clk 0:03:01.5]} 5. Bg5 {[%clk 0:02:58]}
5... Bb7 {[%clk 0:02:59.5]} 6. Qc2 {[%clk 0:02:53.7]} 6... h6 {[%clk 0:02:55.3]}
7. Bh4 {[%clk 0:02:48.3]} 7... O-O {[%clk 0:02:51.7]} 8. e3 {[%clk 0:02:47.4]}
8... c5 {[%clk 0:02:45.2]} 9. Bd3 {[%clk 0:02:39.5]} 9... d6 {[%clk 0:02:44.9]}
10. O-O {[%clk 0:02:24.7]} 10... Bxc3 {[%clk 0:02:43.4]} 11. Qxc3 {[%clk
0:02:19.9]} 11... Nbd7 {[%clk 0:02:35.3]} 12. dxc5 {[%clk 0:02:14.9]} 12... dxc5
{[%clk 0:02:27.8]} 13. Be2 {[%clk 0:02:11.5]} 13... Qc7 {[%clk 0:02:25.2]} 14.
Bg3 {[%clk 0:02:09.8]} 14... Qc8 {[%clk 0:02:11.3]} 15. Rfd1 {[%clk 0:02:06]}
15... Ne4 {[%clk 0:02:03.4]} 16. Qc2 {[%clk 0:02:03.3]} 16... Nxg3 {[%clk
0:02:03.7]} 17. hxg3 {[%clk 0:02:02.3]} 17... Rd8 {[%clk 0:02:03.5]} 18. Rd2
{[%clk 0:02:01.5]} 18... Qc7 {[%clk 0:01:55.9]} 19. Rad1 {[%clk 0:02:00.5]}
19... Nf6 {[%clk 0:01:56.4]} 20. Rxd8+ {[%clk 0:01:45.6]} 20... Rxd8 {[%clk
0:01:57.3]} 21. Rxd8+ {[%clk 0:01:44.5]} 21... Qxd8 {[%clk 0:01:58.2]} 22. Qd2
{[%clk 0:01:43.2]} 22... Qxd2 {[%clk 0:01:54.3]} 23. Nxd2 {[%clk 0:01:42.8]}
23... e5 {[%clk 0:01:50.9]} 24. Bf3 {[%clk 0:01:37.4]} 24... e4 {[%clk
0:01:49.7]} 25. Bd1 {[%clk 0:01:37.1]} 25... Nd7 {[%clk 0:01:48.1]} 26. Bc2
{[%clk 0:01:35.4]} 26... f5 {[%clk 0:01:48.4]} 27. g4 {[%clk 0:01:32.9]} 27...
g6 {[%clk 0:01:48.7]} 28. gxf5 {[%clk 0:01:32.2]} 28... gxf5 {[%clk 0:01:49.2]}
29. g4 {[%clk 0:01:31.8]} 29... fxg4 {[%clk 0:01:42.5]} 30. Bxe4 {[%clk
0:01:31.5]} 30... Bxe4 {[%clk 0:01:39.4]} 31. Nxe4 {[%clk 0:01:31.3]} 31... Kg7
{[%clk 0:01:38.2]} 32. Kg2 {[%clk 0:01:30.3]} 32... Kg6 {[%clk 0:01:31.4]} 33.
Nd6 {[%clk 0:01:26.3]} 33... h5 {[%clk 0:01:27.4]} 34. Kg3 {[%clk 0:01:21.6]}
34... Kg5 {[%clk 0:01:19.8]} 35. Ne4+ {[%clk 0:01:18.4]} 35... Kf5 {[%clk
0:01:18.9]} 36. Nd6+ {[%clk 0:01:17.9]} 36... Ke6 {[%clk 0:01:17.6]} 37. Nc8
{[%clk 0:01:16.9]} 37... Kf6 {[%clk 0:01:09.3]} 38. b3 {[%clk 0:01:13.1]} 38...
a6 {[%clk 0:01:08.9]} 39. Nd6 {[%clk 0:01:11.2]} 39... Ke6 {[%clk 0:01:07.6]}
40. Ne4 {[%clk 0:01:09.2]} 40... Ke5 {[%clk 0:01:04.7]} 41. Nc3 {[%clk
0:01:07.4]} 41... Nf6 {[%clk 0:01:03.5]} 42. Kh4 {[%clk 0:01:05.5]} 42... Kf5
{[%clk 0:01:02.9]} 43. a3 {[%clk 0:00:53.1]} 43... Kg6 {[%clk 0:00:55]} 44. Nd5
{[%clk 0:00:50.9]} 44... Nxd5 {[%clk 0:00:52.2]} 45. cxd5 {[%clk 0:00:50.8]}
45... b5 {[%clk 0:00:53]} 46. d6 {[%clk 0:00:50.5]} 46... Kf6 {[%clk 0:00:53.7]}
47. e4 {[%clk 0:00:18.2]} 47... c4 {[%clk 0:00:52.3]} 48. bxc4 {[%clk
0:00:17.3]} 48... bxc4 {[%clk 0:00:52.7]} 49. e5+ {[%clk 0:00:16.5]} 49... Ke6
{[%clk 0:00:53.5]} 50. Kg5 {[%clk 0:00:16.6]} 50... c3 {[%clk 0:00:53.6]} 51.
Kg6 {[%clk 0:00:09.4]} 51... c2 {[%clk 0:00:54]} 52. d7 {[%clk 0:00:09.8]} 52...
Kxd7 {[%clk 0:00:54.7]} 53. Kf7 {[%clk 0:00:09.9]} 53... c1=Q {[%clk 0:00:55.6]}
54. e6+ {[%clk 0:00:10.2]} 54... Kd6 {[%clk 0:00:55.8]} 55. e7 {[%clk
0:00:10.6]} 55... Qf4+ {[%clk 0:00:56.5]} 0-1

[Event "*** Titled Tuesday Blitz"]
[Site "Chess.com"]
[Date "2021.02.16"]
[Round "1"]
[White "karenzadita"]
[Black "NewBornNow"]
[Result "1/2-1/2"]
[WhiteElo "2430"]
[BlackElo "2774"]
[TimeControl "180+1"]
[EndTime "10:07:23 PST"]
[Termination "Game drawn - insufficient material"]

1. e4 {[%clk 0:03:00.9]} 1... c5 {[%clk 0:02:59.7]} 2. c3 {[%clk 0:03:00.6]}
2... Nf6 {[%clk 0:02:58.5]} 3. e5 {[%clk 0:03:00.4]} 3... Nd5 {[%clk 0:02:58.9]}
4. Nf3 {[%clk 0:02:58.2]} 4... g6 {[%clk 0:02:56.5]} 5. d4 {[%clk 0:02:57.9]}
5... cxd4 {[%clk 0:02:56.3]} 6. cxd4 {[%clk 0:02:51.5]} 6... Bg7 {[%clk
0:02:55.8]} 7. Nc3 {[%clk 0:02:52]} 7... Nxc3 {[%clk 0:02:55.1]} 8. bxc3 {[%clk
0:02:52.9]} 8... d6 {[%clk 0:02:55.2]} 9. exd6 {[%clk 0:02:46]} 9... Qxd6 {[%clk
0:02:54.4]} 10. Be2 {[%clk 0:02:44.7]} 10... O-O {[%clk 0:02:51.2]} 11. O-O
{[%clk 0:02:44.6]} 11... Nc6 {[%clk 0:02:50.6]} 12. Re1 {[%clk 0:02:35.8]} 12...
b6 {[%clk 0:02:49.1]} 13. Qb3 {[%clk 0:02:24.7]} 13... Bb7 {[%clk 0:02:46.6]}
14. Ba3 {[%clk 0:02:18.2]} 14... Qc7 {[%clk 0:02:45.9]} 15. Rac1 {[%clk
0:01:57.1]} 15... Rfd8 {[%clk 0:02:40.8]} 16. Ng5 {[%clk 0:01:50.8]} 16... e6
{[%clk 0:02:40.5]} 17. Bf3 {[%clk 0:01:48.2]} 17... Na5 {[%clk 0:02:39.5]} 18.
Qa4 {[%clk 0:01:25.5]} 18... Bxf3 {[%clk 0:02:30.9]} 19. Nxf3 {[%clk 0:01:26.4]}
19... Rac8 {[%clk 0:02:30.7]} 20. Ne5 {[%clk 0:00:44]} 20... Rd5 {[%clk
0:02:19.5]} 21. Bb4 {[%clk 0:00:27.5]} 21... Bxe5 {[%clk 0:02:07.7]} 22. dxe5
{[%clk 0:00:27.1]} 22... Rxe5 {[%clk 0:02:07.7]} 23. Rxe5 {[%clk 0:00:25.3]}
23... Qxe5 {[%clk 0:02:07.7]} 24. Qd7 {[%clk 0:00:22.6]} 24... Qc7 {[%clk
0:02:06.6]} 25. Qxc7 {[%clk 0:00:21.4]} 25... Rxc7 {[%clk 0:02:06.4]} 26. Bxa5
{[%clk 0:00:22.3]} 26... bxa5 {[%clk 0:02:06.2]} 27. Kf1 {[%clk 0:00:23.2]}
27... Rb7 {[%clk 0:02:04.4]} 28. Rc2 {[%clk 0:00:21.7]} 28... Kf8 {[%clk
0:02:04.3]} 29. Ke2 {[%clk 0:00:22.2]} 29... Ke7 {[%clk 0:02:04.1]} 30. Kd3
{[%clk 0:00:22.8]} 30... Kd6 {[%clk 0:02:03.1]} 31. Kc4 {[%clk 0:00:22.5]} 31...
Kc6 {[%clk 0:02:01.1]} 32. a4 {[%clk 0:00:18.3]} 32... Rb1 {[%clk 0:01:58.5]}
33. Rd2 {[%clk 0:00:18.1]} 33... f5 {[%clk 0:01:53.4]} 34. h3 {[%clk 0:00:18]}
34... g5 {[%clk 0:01:52.2]} 35. g3 {[%clk 0:00:18]} 35... Rh1 {[%clk 0:01:48.9]}
36. Re2 {[%clk 0:00:18.5]} 36... Kd6 {[%clk 0:01:48.3]} 37. Rd2+ {[%clk
0:00:18.7]} 37... Ke7 {[%clk 0:01:47.9]} 38. Kb5 {[%clk 0:00:18.4]} 38... Rxh3
{[%clk 0:01:44.8]} 39. Kxa5 {[%clk 0:00:19]} 39... f4 {[%clk 0:01:44.8]} 40. Rd3
{[%clk 0:00:15]} 40... Rh2 {[%clk 0:01:38.8]} 41. gxf4 {[%clk 0:00:13.9]} 41...
gxf4 {[%clk 0:01:38.7]} 42. Rf3 {[%clk 0:00:14.5]} 42... e5 {[%clk 0:01:37.9]}
43. Ka6 {[%clk 0:00:15]} 43... Ke6 {[%clk 0:01:32.5]} 44. Kxa7 {[%clk
0:00:15.5]} 44... Kf5 {[%clk 0:01:32.6]} 45. Rd3 {[%clk 0:00:15.8]} 45... Rxf2
{[%clk 0:01:31.6]} 46. a5 {[%clk 0:00:15.7]} 46... Ra2 {[%clk 0:01:28.4]} 47. a6
{[%clk 0:00:15.2]} 47... Ke4 {[%clk 0:01:27.8]} 48. Rd7 {[%clk 0:00:14.7]} 48...
f3 {[%clk 0:01:27.7]} 49. Rxh7 {[%clk 0:00:14.5]} 49... f2 {[%clk 0:01:27.4]}
50. Rf7 {[%clk 0:00:14.4]} 50... Ke3 {[%clk 0:01:26.8]} 51. c4 {[%clk
0:00:13.9]} 51... Ra1 {[%clk 0:01:24.5]} 52. c5 {[%clk 0:00:12.8]} 52... f1=Q
{[%clk 0:01:24.5]} 53. Rxf1 {[%clk 0:00:13.5]} 53... Rxf1 {[%clk 0:01:24.3]} 54.
c6 {[%clk 0:00:14.4]} 54... Kd4 {[%clk 0:01:21.2]} 55. c7 {[%clk 0:00:14]} 55...
Rf8 {[%clk 0:01:20]} 56. Kb7 {[%clk 0:00:13.5]} 56... e4 {[%clk 0:01:20]} 57.
c8=Q {[%clk 0:00:13.1]} 57... Rxc8 {[%clk 0:01:19.4]} 58. Kxc8 {[%clk 0:00:14]}
58... e3 {[%clk 0:01:19.9]} 59. a7 {[%clk 0:00:14.9]} 59... e2 {[%clk
0:01:20.1]} 60. a8=Q {[%clk 0:00:15.1]} 60... e1=Q {[%clk 0:01:20.7]} 61. Qa4+
{[%clk 0:00:15]} 61... Kc5 {[%clk 0:01:19.4]} 62. Qa3+ {[%clk 0:00:14.9]} 62...
Qb4 {[%clk 0:01:18.5]} 63. Qxb4+ {[%clk 0:00:14.9]} 63... Kxb4 {[%clk
0:01:18.4]} 1/2-1/2

[Event "*** Titled Tuesday Blitz"]
[Site "Chess.com"]
[Date "2021.02.16"]
[Round "1"]
[White "youngKID"]
[Black "Tashik"]
[Result "1-0"]
[WhiteElo "2839"]
[BlackElo "2427"]
[TimeControl "180+1"]
[EndTime "10:07:24 PST"]
[Termination "youngKID won on time"]

1. Nf3 {[%clk 0:02:56.9]} 1... d5 {[%clk 0:02:17.7]} 2. g3 {[%clk 0:02:53.4]}
2... Nd7 {[%clk 0:02:18.1]} 3. Bg2 {[%clk 0:02:51.1]} 3... e5 {[%clk 0:02:17.1]}
4. d3 {[%clk 0:02:51.5]} 4... Bd6 {[%clk 0:02:15.5]} 5. O-O {[%clk 0:02:51]}
5... Ngf6 {[%clk 0:02:14.8]} 6. Nbd2 {[%clk 0:02:43.2]} 6... O-O {[%clk
0:02:13.9]} 7. e4 {[%clk 0:02:43.1]} 7... c6 {[%clk 0:02:14.3]} 8. Qe2 {[%clk
0:02:37.3]} 8... Re8 {[%clk 0:02:14.3]} 9. h3 {[%clk 0:02:33]} 9... b6 {[%clk
0:02:03.8]} 10. Rd1 {[%clk 0:02:31.9]} 10... Ba6 {[%clk 0:02:02.6]} 11. Nh4
{[%clk 0:02:30.4]} 11... Qc7 {[%clk 0:01:59.1]} 12. a4 {[%clk 0:02:28.3]} 12...
Bf8 {[%clk 0:01:52.3]} 13. Qe1 {[%clk 0:02:12]} 13... Nc5 {[%clk 0:01:47.1]} 14.
Nf1 {[%clk 0:01:50.7]} 14... Rad8 {[%clk 0:01:36.6]} 15. Bg5 {[%clk 0:01:46.6]}
15... dxe4 {[%clk 0:01:22.1]} 16. Bxf6 {[%clk 0:01:43.1]} 16... gxf6 {[%clk
0:01:23]} 17. dxe4 {[%clk 0:01:41.3]} 17... Rxd1 {[%clk 0:01:19.8]} 18. Qxd1
{[%clk 0:01:38.6]} 18... Kh8 {[%clk 0:01:15.2]} 19. Qf3 {[%clk 0:01:32.8]} 19...
Be7 {[%clk 0:01:04.1]} 20. Ne3 {[%clk 0:01:27.7]} 20... Ne6 {[%clk 0:01:04.5]}
21. c3 {[%clk 0:01:20.3]} 21... Rd8 {[%clk 0:01:03.9]} 22. Nhf5 {[%clk
0:01:13.4]} 22... Rd2 {[%clk 0:01:01.1]} 23. b4 {[%clk 0:00:35.8]} 23... Be2
{[%clk 0:00:59.1]} 24. Nd5 {[%clk 0:00:25.9]} 24... cxd5 {[%clk 0:00:50]} 25.
Qe3 {[%clk 0:00:26]} 25... Rc2 {[%clk 0:00:40.6]} 26. exd5 {[%clk 0:00:26.1]}
26... Ng7 {[%clk 0:00:30.7]} 27. Nxe7 {[%clk 0:00:20.6]} 27... Qxe7 {[%clk
0:00:29.1]} 28. Be4 {[%clk 0:00:21.2]} 28... Rb2 {[%clk 0:00:21.4]} 29. a5
{[%clk 0:00:16.4]} 29... f5 {[%clk 0:00:19.3]} 30. axb6 {[%clk 0:00:16.4]} 30...
a6 {[%clk 0:00:13.2]} 31. Bd3 {[%clk 0:00:07]} 31... f4 {[%clk 0:00:04.9]} 32.
Qe4 {[%clk 0:00:05.7]} 32... Bxd3 {[%clk 0:00:04.6]} 33. Qxd3 {[%clk 0:00:06.6]}
33... fxg3 {[%clk 0:00:04.1]} 34. Qxg3 {[%clk 0:00:06.1]} 1-0

[Event "*** Titled Tuesday Blitz"]
[Site "Chess.com"]
[Date "2021.02.16"]
[Round "1"]
[White "JQuiroga18"]
[Black "Rsnr"]
[Result "0-1"]
[WhiteElo "2413"]
[BlackElo "2790"]
[TimeControl "180+1"]
[EndTime "10:07:26 PST"]
[Termination "Rsnr won by resignation"]

1. e4 {[%clk 0:03:00.1]} 1... c6 {[%clk 0:02:58.9]} 2. Nc3 {[%clk 0:02:57.9]}
2... d5 {[%clk 0:02:59.8]} 3. Nf3 {[%clk 0:02:57.4]} 3... Bg4 {[%clk 0:02:59.6]}
4. h3 {[%clk 0:02:57.2]} 4... Bh5 {[%clk 0:03:00]} 5. exd5 {[%clk 0:02:44.5]}
5... cxd5 {[%clk 0:03:00.9]} 6. Bb5+ {[%clk 0:02:42.7]} 6... Nc6 {[%clk
0:03:00.9]} 7. g4 {[%clk 0:02:42.8]} 7... Bg6 {[%clk 0:03:01.1]} 8. Ne5 {[%clk
0:02:42.3]} 8... Rc8 {[%clk 0:03:01.6]} 9. d4 {[%clk 0:02:29.8]} 9... e6 {[%clk
0:03:01.7]} 10. h4 {[%clk 0:02:25.1]} 10... f6 {[%clk 0:03:01.5]} 11. Nxg6
{[%clk 0:02:19.8]} 11... hxg6 {[%clk 0:03:02.4]} 12. h5 {[%clk 0:02:10.9]} 12...
gxh5 {[%clk 0:03:00.3]} 13. gxh5 {[%clk 0:02:11.8]} 13... f5 {[%clk 0:02:59.6]}
14. Bf4 {[%clk 0:02:05.7]} 14... Nf6 {[%clk 0:02:58.2]} 15. Qf3 {[%clk
0:02:00.7]} 15... Kf7 {[%clk 0:02:57.9]} 16. O-O-O {[%clk 0:01:58.9]} 16... Qa5
{[%clk 0:02:48.2]} 17. Bxc6 {[%clk 0:01:30.2]} 17... Rxc6 {[%clk 0:02:49.1]} 18.
Kb1 {[%clk 0:01:30.2]} 18... Bb4 {[%clk 0:02:37.1]} 19. Ne2 {[%clk 0:01:29.6]}
19... Rhc8 {[%clk 0:02:32.5]} 20. Qg3 {[%clk 0:01:11]} 20... Ng4 {[%clk
0:01:00.1]} 21. c3 {[%clk 0:01:09.9]} 21... Ra6 {[%clk 0:00:47.1]} 22. Nc1
{[%clk 0:00:26]} 22... Bxc3 {[%clk 0:00:47.2]} 23. bxc3 {[%clk 0:00:26.2]} 23...
Rxc3 {[%clk 0:00:48.1]} 24. Rd3 {[%clk 0:00:26.2]} 24... Qb5+ {[%clk 0:00:39.2]}
25. Ka1 {[%clk 0:00:21.4]} 25... Rc2 {[%clk 0:00:39.4]} 26. Rb3 {[%clk
0:00:19.4]} 26... Qc6 {[%clk 0:00:34.8]} 27. Qd3 {[%clk 0:00:18.4]} 27... Nxf2
{[%clk 0:00:33.4]} 28. Qb5 {[%clk 0:00:18]} 28... Nxh1 {[%clk 0:00:10.8]} 29.
Qxb7+ {[%clk 0:00:17.6]} 29... Qxb7 {[%clk 0:00:11.7]} 30. Rxb7+ {[%clk
0:00:17.8]} 30... Kg8 {[%clk 0:00:12.6]} 31. Rb8+ {[%clk 0:00:18]} 31... Kh7
{[%clk 0:00:12.6]} 32. h6 {[%clk 0:00:17.8]} 32... gxh6 {[%clk 0:00:12.4]} 33.
Rb7+ {[%clk 0:00:17.7]} 33... Kg6 {[%clk 0:00:13]} 34. Kb1 {[%clk 0:00:17.6]}
34... Rf2 {[%clk 0:00:07.5]} 35. Be5 {[%clk 0:00:17.8]} 35... Rb6+ {[%clk
0:00:07.4]} 36. Rxb6 {[%clk 0:00:17.1]} 36... axb6 {[%clk 0:00:08.3]} 37. Nd3
{[%clk 0:00:17.4]} 37... Rf3 {[%clk 0:00:07.1]} 38. Nb4 {[%clk 0:00:16.5]} 38...
Ng3 {[%clk 0:00:06.4]} 39. Nc6 {[%clk 0:00:16.8]} 39... h5 {[%clk 0:00:06.4]}
40. Nd8 {[%clk 0:00:17.1]} 40... h4 {[%clk 0:00:05.4]} 41. Nxe6 {[%clk 0:00:18]}
41... h3 {[%clk 0:00:06]} 42. Nf4+ {[%clk 0:00:17.9]} 42... Rxf4 {[%clk
0:00:05.5]} 0-1

[Event "*** Titled Tuesday Blitz"]
[Site "Chess.com"]
[Date "2021.02.16"]
[Round "1"]
[White "Mihnea2017"]
[Black "NTBT_DHS"]
[Result "1-0"]
[WhiteElo "2437"]
[BlackElo "2792"]
[TimeControl "180+1"]
[EndTime "10:07:28 PST"]
[Termination "Mihnea2017 won by resignation"]

1. e4 {[%clk 0:03:00.9]} 1... g6 {[%clk 0:03:00.1]} 2. d4 {[%clk 0:03:00.5]}
2... Bg7 {[%clk 0:03:01]} 3. Nc3 {[%clk 0:03:00]} 3... a6 {[%clk 0:03:00.6]} 4.
f4 {[%clk 0:02:59.1]} 4... d5 {[%clk 0:03:00.4]} 5. e5 {[%clk 0:02:49.8]} 5...
Nh6 {[%clk 0:02:59.6]} 6. Nf3 {[%clk 0:02:48.5]} 6... O-O {[%clk 0:02:57.8]} 7.
Be3 {[%clk 0:02:45.7]} 7... Nc6 {[%clk 0:02:54.9]} 8. h3 {[%clk 0:02:37.2]} 8...
f6 {[%clk 0:02:43.5]} 9. Qd2 {[%clk 0:02:11.8]} 9... fxe5 {[%clk 0:02:41.1]} 10.
dxe5 {[%clk 0:02:04.9]} 10... Nf5 {[%clk 0:02:25.9]} 11. Bf2 {[%clk 0:02:02]}
11... d4 {[%clk 0:02:08.2]} 12. Ne4 {[%clk 0:02:01]} 12... Be6 {[%clk
0:02:04.9]} 13. g4 {[%clk 0:01:38.7]} 13... Qd5 {[%clk 0:01:48.6]} 14. Bd3
{[%clk 0:01:24.3]} 14... Ne3 {[%clk 0:01:28.6]} 15. Bxe3 {[%clk 0:01:20.9]}
15... dxe3 {[%clk 0:01:29.5]} 16. Qxe3 {[%clk 0:01:20.8]} 16... Bh6 {[%clk
0:01:21.5]} 17. g5 {[%clk 0:01:12.9]} 17... Bg7 {[%clk 0:01:21.5]} 18. Nc3
{[%clk 0:01:10.5]} 18... Qa5 {[%clk 0:01:19]} 19. Be4 {[%clk 0:01:02.3]} 19...
Nb4 {[%clk 0:01:02.8]} 20. Kf2 {[%clk 0:00:48.7]} 20... c6 {[%clk 0:00:53.9]}
21. h4 {[%clk 0:00:27.7]} 21... Rf7 {[%clk 0:00:50.3]} 22. h5 {[%clk 0:00:25.8]}
22... Raf8 {[%clk 0:00:49.6]} 23. Rh4 {[%clk 0:00:21.7]} 23... Bf5 {[%clk
0:00:45.7]} 24. hxg6 {[%clk 0:00:20.6]} 24... hxg6 {[%clk 0:00:45]} 25. Rah1
{[%clk 0:00:17.1]} 25... Nxc2 {[%clk 0:00:34.8]} 26. Bxc2 {[%clk 0:00:10.5]}
26... Bxc2 {[%clk 0:00:35.7]} 27. Nd4 {[%clk 0:00:10.9]} 27... Bf5 {[%clk
0:00:17]} 28. e6 {[%clk 0:00:11.2]} 28... Bxe6 {[%clk 0:00:10.2]} 29. Nxe6
{[%clk 0:00:12.1]} 29... Qb4 {[%clk 0:00:09.2]} 30. Nxf8 {[%clk 0:00:10.7]}
30... Qxb2+ {[%clk 0:00:08.9]} 31. Ne2 {[%clk 0:00:10.4]} 31... Rxf8 {[%clk
0:00:08]} 32. Qe6+ {[%clk 0:00:07.7]} 32... Rf7 {[%clk 0:00:08.7]} 33. Rh7
{[%clk 0:00:07.8]} 33... Qb6+ {[%clk 0:00:08.3]} 34. Kg2 {[%clk 0:00:07]} 34...
Qb2 {[%clk 0:00:09.2]} 35. Rxg7+ {[%clk 0:00:05.9]} 35... Qxg7 {[%clk
0:00:09.4]} 36. f5 {[%clk 0:00:03.8]} 36... gxf5 {[%clk 0:00:09.7]} 37. g6
{[%clk 0:00:04]} 37... Kf8 {[%clk 0:00:10.6]} 38. Qxf7+ {[%clk 0:00:04.3]} 38...
Qxf7 {[%clk 0:00:11.2]} 39. gxf7 {[%clk 0:00:05.2]} 39... Kg7 {[%clk 0:00:11.9]}
40. Kf3 {[%clk 0:00:06]} 40... Kxf7 {[%clk 0:00:12.5]} 41. Nd4 {[%clk
0:00:06.4]} 41... e5 {[%clk 0:00:13.4]} 42. Nxf5 {[%clk 0:00:06.3]} 42... Kf6
{[%clk 0:00:14.3]} 43. Ke4 {[%clk 0:00:07.2]} 43... Ke6 {[%clk 0:00:15.1]} 44.
Rh6+ {[%clk 0:00:07.5]} 1-0

[Event "*** Titled Tuesday Blitz"]
[Site "Chess.com"]
[Date "2021.02.16"]
[Round "1"]
[White "CM_rui"]
[Black "XDPS"]
[Result "1-0"]
[WhiteElo "2416"]
[BlackElo "2737"]
[TimeControl "180+1"]
[EndTime "10:07:28 PST"]
[Termination "CM_rui won by checkmate"]

1. e4 {[%clk 0:03:00.9]} 1... c5 {[%clk 0:02:59]} 2. Nf3 {[%clk 0:03:00.4]} 2...
e6 {[%clk 0:02:59.6]} 3. c4 {[%clk 0:03:00.7]} 3... Nc6 {[%clk 0:02:59.4]} 4. d4
{[%clk 0:03:00.7]} 4... cxd4 {[%clk 0:02:59.4]} 5. Nxd4 {[%clk 0:03:01.6]} 5...
Nf6 {[%clk 0:02:59.6]} 6. Nc3 {[%clk 0:03:01.6]} 6... Bb4 {[%clk 0:02:57.7]} 7.
Nxc6 {[%clk 0:03:02]} 7... bxc6 {[%clk 0:02:57.5]} 8. Bd3 {[%clk 0:03:01.2]}
8... e5 {[%clk 0:02:45.3]} 9. O-O {[%clk 0:02:57.7]} 9... O-O {[%clk 0:02:45.3]}
10. Be3 {[%clk 0:02:47.1]} 10... d6 {[%clk 0:02:43.3]} 11. Rc1 {[%clk
0:02:43.2]} 11... Bg4 {[%clk 0:02:29.4]} 12. f3 {[%clk 0:02:41.9]} 12... Be6
{[%clk 0:02:29.6]} 13. a3 {[%clk 0:02:39.6]} 13... Ba5 {[%clk 0:02:25.7]} 14. b4
{[%clk 0:02:37.6]} 14... Bb6 {[%clk 0:02:25.8]} 15. Qe2 {[%clk 0:02:38.2]} 15...
Bd4 {[%clk 0:02:24.6]} 16. Rfd1 {[%clk 0:02:27.6]} 16... Nh5 {[%clk 0:02:23.2]}
17. g3 {[%clk 0:02:25.1]} 17... Qg5 {[%clk 0:02:22.1]} 18. Kf2 {[%clk 0:02:17]}
18... f5 {[%clk 0:02:14.6]} 19. Bxd4 {[%clk 0:02:02.8]} 19... exd4 {[%clk
0:02:14.8]} 20. exf5 {[%clk 0:02:03.4]} 20... Bxf5 {[%clk 0:02:13.2]} 21. Ne4
{[%clk 0:02:03.7]} 21... Bxe4 {[%clk 0:02:00.6]} 22. Qxe4 {[%clk 0:02:04.6]}
22... Nf6 {[%clk 0:01:14.9]} 23. Qxd4 {[%clk 0:01:35]} 23... Ng4+ {[%clk
0:00:53.2]} 24. Kg1 {[%clk 0:01:32.8]} 24... Rxf3 {[%clk 0:00:49.9]} 25. Qe4
{[%clk 0:01:04.7]} 25... Ne5 {[%clk 0:00:46.3]} 26. Qxh7+ {[%clk 0:01:00]} 26...
Kf7 {[%clk 0:00:46.4]} 27. Rf1 {[%clk 0:00:57.1]} 27... Qe3+ {[%clk 0:00:39.1]}
28. Kg2 {[%clk 0:00:54.6]} 28... Qd2+ {[%clk 0:00:38.9]} 29. Kh3 {[%clk
0:00:53.1]} 29... Rf8 {[%clk 0:00:13.5]} 30. Rxf3+ {[%clk 0:00:49.8]} 30... Nxf3
{[%clk 0:00:14.4]} 31. Rf1 {[%clk 0:00:20.8]} 31... Ke8 {[%clk 0:00:02.5]} 32.
Rxf3 {[%clk 0:00:10.1]} 32... Rxf3 {[%clk 0:00:01.4]} 33. Qh5+ {[%clk
0:00:10.7]} 33... Rf7 {[%clk 0:00:02]} 34. Bg6 {[%clk 0:00:10.5]} 34... Kd8
{[%clk 0:00:02.1]} 35. Bxf7 {[%clk 0:00:10.6]} 35... Qe3 {[%clk 0:00:02.7]} 36.
Qh8+ {[%clk 0:00:10.5]} 36... Kc7 {[%clk 0:00:03.1]} 37. Qe8 {[%clk 0:00:09]}
37... Qh6+ {[%clk 0:00:02.9]} 38. Bh5 {[%clk 0:00:09.6]} 38... Kb6 {[%clk
0:00:02]} 39. Qb8+ {[%clk 0:00:09.2]} 39... Ka6 {[%clk 0:00:01.9]} 40. b5+
{[%clk 0:00:09.7]} 40... Ka5 {[%clk 0:00:02]} 41. Qxa7# {[%clk 0:00:09.9]} 1-0